{"text_format":"1","workbook":"xlsx","n_sheets":2,"sheets":["Прейскурант","СВХ"],"not_rendered":{"charts":0,"images":0,"macros":1,"external_links":1,"defined_names":8,"comments":0,"pivot_tables":0},"unopened":[],"bounds":{"document_bytes":16777216,"sheet_cells":100000,"rows_first":2000,"rows_last":500,"rows_between":2000,"halvings":0,"cell_chars":16384,"cell_head_chars":4096},"cells_cut":0,"cells_raw":0,"read":"whole","date_system":"1900"}

{"sheet":"Прейскурант","index":0,"n_rows":34,"n_cols":8,"rows_kept":34,"cut":false,"hidden":false,"merged":[[9,1,9,6],[27,1,27,6],[22,1,22,6],[23,1,23,6],[24,1,24,6],[25,1,25,6],[26,1,26,6],[5,1,5,6],[20,1,20,6],[21,1,21,6],[10,1,10,6],[11,1,11,6],[12,1,12,6],[13,1,13,6],[14,1,14,6],[15,1,15,6],[6,1,6,6],[16,1,16,6],[17,1,17,6],[18,1,18,6],[19,1,19,6],[7,1,7,6],[8,1,8,6]]}
[]
[]
[]
[]
[]
[null,"Прейскурант цен "]
[]
[1,"Ж/Д вагон, автотранспорт, полуприцеп и прицеп",null,null,null,null,null,1]
[2,"Товарно-упаковочные грузы за 1 место (1поддон) ",null,null,null,null,null,2]
[3,"ЖД , полувагоны",null,null,null,null,null,3]
[4,"Контейнеры 40фут., 20 (авто, платформы)",null,null,null,null,null,4]
[5,"Оформление  документов  на  временное  хранения",null,null,null,null,null,5]
[6,"Охрана малогабаритного груза в сутки за 1место ",null,null,null,null,null,6]
[7,"Охрана груза до 5-ти полет  в сутки",null,null,null,null,null,7]
[8,"Охрана товаров оборудование находящихся в грузовом авто, контейнере, вагоне в сутки",null,null,null,null,null,8]
[9,"Охрана размещенных  товаров в помещениях СВХ  в сутки",null,null,null,null,null,9]
[10,"Охрана грузовых автомобилей ,тяжелой техники на территории СВХ  в сутки  ",null,null,null,null,null,10]
[11,"Охрана легкового автомобиля на территории  СВХ до15 дней",null,null,null,null,null,11]
[12,"По истечении хранения легкового автомобиля 15 дней последующие каждые сутки",null,null,null,null,null,12]
[13,"Разрешение на въезд на территории базы",null,null,null,null,null,13]
[14,"Использование ж/д тупика",null,null,null,null,null,14]
[15,"Пакетирование груза (1 поддон)",null,null,null,null,null,15]
[16,"Охран  автотранспортных средств на территории базы ",null,null,null,null,null,16]
[17,"Охрана ж/д вагонов на территории базы ",null,null,null,null,null,17]
[]
[]
[]
[]
[]
[null,null,null,null,null,null,"Контрабанда"]
[null,null,null,null,null,null,"Проблемные"]
[null,null,null,null,null,null,"Отработанные"]
[null,null,null,null,null,null,"Дебиторы"]
[null,null,null,null,null,null,"на СВХ"]

{"sheet":"СВХ","index":1,"n_rows":303,"n_cols":54,"rows_kept":303,"cut":false,"hidden":false,"merged":[[0,28,2,29],[0,26,2,26],[0,27,2,27],[0,24,2,24],[1,18,2,18],[1,19,2,19],[0,13,0,21],[1,20,2,20],[1,21,2,21],[1,13,2,13],[1,14,2,14],[1,15,2,15],[1,16,2,16],[1,17,2,17],[0,25,2,25],[0,0,2,0],[0,1,2,1],[0,2,2,2],[0,4,2,4],[0,3,2,3],[1,10,2,10],[1,11,2,11],[0,10,0,11],[0,23,2,23],[0,5,2,5],[0,22,2,22],[0,12,2,12],[0,6,2,6],[0,7,2,7],[1,8,2,8],[1,9,2,9],[0,8,0,9]]}
["№","Дата прибытия","Дата убытия (ручн.)","Текущая дата (автом.)","Срок хранения","Найменование товара","Кол-во товара","Клиент","Услуги автопогрузчика (автокары)",null,"Услуги автокрана. Выгрузка/погрузка",null,"Оформление документов на временное хранение (КД)","Услуги Охраны на территории СВХ",null,null,null,null,null,null,null,null,"Использование ЖД тупика","Разрешение на въезд","Пакетирование груза","Итого по прейскуранту","Скидка","Итого со скидкой"]
[null,null,null,null,null,null,null,null,"погруз\\разгруз работы автопогрузчика(вагон, автотранспорт, прицеп, полупицеп)","Товарно-упаковочные грузы (1 поддон)","ЖД, полувагоны","Контейнеры 40  фут., 20 (авто, платформы)",null,"Охрана малогабаритного груза в сутки за место","Охрана груза до 5ти паллет в сутки","Охрана товаров в грузовом авто/контейнере/вагоне, в сутки","Охрана товаров в помещениях СВХ, в сутки","Охрана груз. авто, тяж. техники на территории СВХ, в сутки","Охрана легкового автомобиля на СВХ до 15 дней","Охрана легкового автомобиля на СВХ после 15 дней, в сутки","Охрана автотранспортных средств на территории базы","Охрана ЖД вагонов на территории базы"]
[]
[1,null,null,{"$f":"NOW()","v":"2014-08-13T12:51:08.370"},{"$f":"Прейскурант!A10*XFD4","v":0},null,null,null,null,null,null,null,null,null,null,null,null,{"$f":"Прейскурант!H16*E4*G4","v":0}]
[2,null,null,{"$f":"NOW()","v":"2014-08-13T12:51:08.370"},{"$f":"IF(C5>0,INT(C5-B5)+1,INT(D5-B5)+1)","v":41865},null,null,null,null,null,null,null,null,null,null,null,null,null,null,null,null,null,null,null,null,{"$f":"SUM(I5:Y5)","v":0},null,{"$f":"IF(AA5>0,Z5*(1-AA5))","v":false},null,null,null,null,null,null,null,null,null,null,null,null,null,null,null,null,null,null,null,null,null,"Автопогрузчик",null,null,null,"Налич."]
[3,null,null,"2014-08-13T12:51:08.370",41865,null,null,null,null,null,null,null,null,null,null,null,null,null,null,null,null,null,null,null,null,{"$f":"SUM(I6:Y6)","v":0},null,{"$f":"IF(AA6>0,Z6*(1-AA6))","v":false},null,null,null,null,null,null,null,null,null,null,null,null,null,null,null,null,null,null,null,null,null,"АвтоКран"]
[4,null,null,"2014-08-13T12:51:08.370",41865,null,null,null,null,null,null,null,null,null,null,null,null,null,null,null,null,null,null,null,null,0,null,false,null,null,null,null,null,null,null,null,null,null,null,null,null,null,null,null,null,null,null,null,null,"хран. 1 паллет",null,null,null,"Переч."]
[5,null,null,"2014-08-13T12:51:08.370",41865,null,null,null,null,null,null,null,null,null,null,null,null,null,null,null,null,null,null,null,null,0,null,false,null,null,null,null,null,null,null,null,null,null,null,null,null,null,null,null,null,null,null,null,null,"Автокран 1 место"]
[6,null,null,"2014-08-13T12:51:08.370",41865,null,null,null,null,null,null,null,null,null,null,null,null,null,null,null,null,null,null,null,null,0,null,false,null,null,null,null,null,null,null,null,null,null,null,null,null,null,null,null,null,null,null,null,null,"Охрана груз авто"]
[7,null,null,"2014-08-13T12:51:08.370",41865,null,null,null,null,null,null,null,null,null,null,null,null,null,null,null,null,null,null,null,null,0,null,false,null,null,null,null,null,null,null,null,null,null,null,null,null,null,null,null,null,null,null,null,null,"Охрана в груз конт"]
[8,null,null,"2014-08-13T12:51:08.370",41865,null,null,null,null,null,null,null,null,null,null,null,null,null,null,null,null,null,null,null,null,0,null,false,null,null,null,null,null,null,null,null,null,null,null,null,null,null,null,null,null,null,null,null,null,"Охрана товаров"]
[9,null,null,"2014-08-13T12:51:08.370",41865,null,null,null,null,null,null,null,null,null,null,null,null,null,null,null,null,null,null,null,null,0,null,false,null,null,null,null,null,null,null,null,null,null,null,null,null,null,null,null,null,null,null,null,null,"Охрана тяж техники"]
[10,null,null,"2014-08-13T12:51:08.370",41865,null,null,null,null,null,null,null,null,null,null,null,null,null,null,null,null,null,null,null,null,0,null,false,null,null,null,null,null,null,null,null,null,null,null,null,null,null,null,null,null,null,null,null,null,"Охрана легк авто"]
[11,null,null,"2014-08-13T12:51:08.370",41865,null,null,null,null,null,null,null,null,null,null,null,null,null,null,null,null,null,null,null,null,0,null,false,null,null,null,null,null,null,null,null,null,null,null,null,null,null,null,null,null,null,null,null,null,"Использование жд тупика"]
[12,null,null,"2014-08-13T12:51:08.370",41865,null,null,null,null,null,null,null,null,null,null,null,null,null,null,null,null,null,null,null,null,0,null,false,null,null,null,null,null,null,null,null,null,null,null,null,null,null,null,null,null,null,null,null,null,"Пакетирование"]
[13,null,null,"2014-08-13T12:51:08.370",41865,null,null,null,null,null,null,null,null,null,null,null,null,null,null,null,null,null,null,null,null,0,null,false,null,null,null,null,null,null,null,null,null,null,null,null,null,null,null,null,null,null,null,null,null,"Охрана жд вагона"]
[14,null,null,"2014-08-13T12:51:08.370",41865,null,null,null,null,null,null,null,null,null,null,null,null,null,null,null,null,null,null,null,null,0,null,false]
[15,null,null,"2014-08-13T12:51:08.370",41865,null,null,null,null,null,null,null,null,null,null,null,null,null,null,null,null,null,null,null,null,0,null,false]
[16,null,null,"2014-08-13T12:51:08.370",41865,null,null,null,null,null,null,null,null,null,null,null,null,null,null,null,null,null,null,null,null,0,null,false]
[17,null,null,"2014-08-13T12:51:08.370",41865,null,null,null,null,null,null,null,null,null,null,null,null,null,null,null,null,null,null,null,null,0,null,false]
[18,null,null,"2014-08-13T12:51:08.370",41865,null,null,null,null,null,null,null,null,null,null,null,null,null,null,null,null,null,null,null,null,0,null,false]
[19,null,null,"2014-08-13T12:51:08.370",41865,null,null,null,null,null,null,null,null,null,null,null,null,null,null,null,null,null,null,null,null,0,null,false]
[20,null,null,"2014-08-13T12:51:08.370",41865,null,null,null,null,null,null,null,null,null,null,null,null,null,null,null,null,null,null,null,null,0,null,false]
[21,null,null,"2014-08-13T12:51:08.370",41865,null,null,null,null,null,null,null,null,null,null,null,null,null,null,null,null,null,null,null,null,0,null,false]
[22,null,null,"2014-08-13T12:51:08.370",41865,null,null,null,null,null,null,null,null,null,null,null,null,null,null,null,null,null,null,null,null,0,null,false]
[23,null,null,"2014-08-13T12:51:08.370",41865,null,null,null,null,null,null,null,null,null,null,null,null,null,null,null,null,null,null,null,null,0,null,false]
[24,null,null,"2014-08-13T12:51:08.370",41865,null,null,null,null,null,null,null,null,null,null,null,null,null,null,null,null,null,null,null,null,0,null,false]
[25,null,null,"2014-08-13T12:51:08.370",41865,null,null,null,null,null,null,null,null,null,null,null,null,null,null,null,null,null,null,null,null,0,null,false]
[26,null,null,"2014-08-13T12:51:08.370",41865,null,null,null,null,null,null,null,null,null,null,null,null,null,null,null,null,null,null,null,null,0,null,false]
[27,null,null,"2014-08-13T12:51:08.370",41865,null,null,null,null,null,null,null,null,null,null,null,null,null,null,null,null,null,null,null,null,0,null,false]
[28,null,null,"2014-08-13T12:51:08.370",41865,null,null,null,null,null,null,null,null,null,null,null,null,null,null,null,null,null,null,null,null,0,null,false]
[29,null,null,"2014-08-13T12:51:08.370",41865,null,null,null,null,null,null,null,null,null,null,null,null,null,null,null,null,null,null,null,null,0,null,false]
[30,null,null,"2014-08-13T12:51:08.370",41865,null,null,null,null,null,null,null,null,null,null,null,null,null,null,null,null,null,null,null,null,0,null,false]
[31,null,null,"2014-08-13T12:51:08.370",41865,null,null,null,null,null,null,null,null,null,null,null,null,null,null,null,null,null,null,null,null,0,null,false]
[32,null,null,"2014-08-13T12:51:08.370",41865,null,null,null,null,null,null,null,null,null,null,null,null,null,null,null,null,null,null,null,null,0,null,false]
[33,null,null,"2014-08-13T12:51:08.370",41865,null,null,null,null,null,null,null,null,null,null,null,null,null,null,null,null,null,null,null,null,0,null,false]
[34,null,null,"2014-08-13T12:51:08.370",41865,null,null,null,null,null,null,null,null,null,null,null,null,null,null,null,null,null,null,null,null,0,null,false]
[35,null,null,"2014-08-13T12:51:08.370",41865,null,null,null,null,null,null,null,null,null,null,null,null,null,null,null,null,null,null,null,null,0,null,false]
[36,null,null,"2014-08-13T12:51:08.370",41865,null,null,null,null,null,null,null,null,null,null,null,null,null,null,null,null,null,null,null,null,0,null,false]
[37,null,null,"2014-08-13T12:51:08.370",41865,null,null,null,null,null,null,null,null,null,null,null,null,null,null,null,null,null,null,null,null,0,null,false]
[38,null,null,"2014-08-13T12:51:08.370",41865,null,null,null,null,null,null,null,null,null,null,null,null,null,null,null,null,null,null,null,null,0,null,false]
[39,null,null,"2014-08-13T12:51:08.370",41865,null,null,null,null,null,null,null,null,null,null,null,null,null,null,null,null,null,null,null,null,0,null,false]
[40,null,null,"2014-08-13T12:51:08.370",41865,null,null,null,null,null,null,null,null,null,null,null,null,null,null,null,null,null,null,null,null,0,null,false]
[41,null,null,"2014-08-13T12:51:08.370",41865,null,null,null,null,null,null,null,null,null,null,null,null,null,null,null,null,null,null,null,null,0,null,false]
[42,null,null,"2014-08-13T12:51:08.370",41865,null,null,null,null,null,null,null,null,null,null,null,null,null,null,null,null,null,null,null,null,0,null,false]
[43,null,null,"2014-08-13T12:51:08.370",41865,null,null,null,null,null,null,null,null,null,null,null,null,null,null,null,null,null,null,null,null,0,null,false]
[44,null,null,"2014-08-13T12:51:08.370",41865,null,null,null,null,null,null,null,null,null,null,null,null,null,null,null,null,null,null,null,null,0,null,false]
[45,null,null,"2014-08-13T12:51:08.370",41865,null,null,null,null,null,null,null,null,null,null,null,null,null,null,null,null,null,null,null,null,0,null,false]
[46,null,null,"2014-08-13T12:51:08.370",41865,null,null,null,null,null,null,null,null,null,null,null,null,null,null,null,null,null,null,null,null,0,null,false]
[47,null,null,"2014-08-13T12:51:08.370",41865,null,null,null,null,null,null,null,null,null,null,null,null,null,null,null,null,null,null,null,null,0,null,false]
[48,null,null,"2014-08-13T12:51:08.370",41865,null,null,null,null,null,null,null,null,null,null,null,null,null,null,null,null,null,null,null,null,0,null,false]
[49,null,null,"2014-08-13T12:51:08.370",41865,null,null,null,null,null,null,null,null,null,null,null,null,null,null,null,null,null,null,null,null,0,null,false]
[50,null,null,"2014-08-13T12:51:08.370",41865,null,null,null,null,null,null,null,null,null,null,null,null,null,null,null,null,null,null,null,null,0,null,false]
[51,null,null,"2014-08-13T12:51:08.370",41865,null,null,null,null,null,null,null,null,null,null,null,null,null,null,null,null,null,null,null,null,0,null,false]
[52,null,null,"2014-08-13T12:51:08.370",41865,null,null,null,null,null,null,null,null,null,null,null,null,null,null,null,null,null,null,null,null,0,null,false]
[53,null,null,"2014-08-13T12:51:08.370",41865,null,null,null,null,null,null,null,null,null,null,null,null,null,null,null,null,null,null,null,null,0,null,false]
[54,null,null,"2014-08-13T12:51:08.370",41865,null,null,null,null,null,null,null,null,null,null,null,null,null,null,null,null,null,null,null,null,0,null,false]
[55,null,null,"2014-08-13T12:51:08.370",41865,null,null,null,null,null,null,null,null,null,null,null,null,null,null,null,null,null,null,null,null,0,null,false]
[56,null,null,"2014-08-13T12:51:08.370",41865,null,null,null,null,null,null,null,null,null,null,null,null,null,null,null,null,null,null,null,null,0,null,false]
[57,null,null,"2014-08-13T12:51:08.370",41865,null,null,null,null,null,null,null,null,null,null,null,null,null,null,null,null,null,null,null,null,0,null,false]
[58,null,null,"2014-08-13T12:51:08.370",41865,null,null,null,null,null,null,null,null,null,null,null,null,null,null,null,null,null,null,null,null,0,null,false]
[59,null,null,"2014-08-13T12:51:08.370",41865,null,null,null,null,null,null,null,null,null,null,null,null,null,null,null,null,null,null,null,null,0,null,false]
[60,null,null,"2014-08-13T12:51:08.370",41865,null,null,null,null,null,null,null,null,null,null,null,null,null,null,null,null,null,null,null,null,0,null,false]
[61,null,null,"2014-08-13T12:51:08.370",41865,null,null,null,null,null,null,null,null,null,null,null,null,null,null,null,null,null,null,null,null,0,null,false]
[62,null,null,"2014-08-13T12:51:08.370",41865,null,null,null,null,null,null,null,null,null,null,null,null,null,null,null,null,null,null,null,null,0,null,false]
[63,null,null,"2014-08-13T12:51:08.370",41865,null,null,null,null,null,null,null,null,null,null,null,null,null,null,null,null,null,null,null,null,0,null,false]
[64,null,null,"2014-08-13T12:51:08.370",41865,null,null,null,null,null,null,null,null,null,null,null,null,null,null,null,null,null,null,null,null,0,null,false]
[65,null,null,"2014-08-13T12:51:08.370",{"$f":"IF(C68>0,INT(C68-B68)+1,INT(D68-B68)+1)","v":41865},null,null,null,null,null,null,null,null,null,null,null,null,null,null,null,null,null,null,null,null,0,null,false]
[66,null,null,{"$f":"NOW()","v":"2014-08-13T12:51:08.370"},41865,null,null,null,null,null,null,null,null,null,null,null,null,null,null,null,null,null,null,null,null,0,null,false]
[67,null,null,"2014-08-13T12:51:08.370",41865,null,null,null,null,null,null,null,null,null,null,null,null,null,null,null,null,null,null,null,null,{"$f":"SUM(I70:Y70)","v":0},null,{"$f":"IF(AA70>0,Z70*(1-AA70))","v":false}]
[68,null,null,"2014-08-13T12:51:08.370",41865,null,null,null,null,null,null,null,null,null,null,null,null,null,null,null,null,null,null,null,null,0,null,false]
[69,null,null,"2014-08-13T12:51:08.370",41865,null,null,null,null,null,null,null,null,null,null,null,null,null,null,null,null,null,null,null,null,0,null,false]
[70,null,null,"2014-08-13T12:51:08.370",41865,null,null,null,null,null,null,null,null,null,null,null,null,null,null,null,null,null,null,null,null,0,null,false]
[71,null,null,"2014-08-13T12:51:08.370",41865,null,null,null,null,null,null,null,null,null,null,null,null,null,null,null,null,null,null,null,null,0,null,false]
[72,null,null,"2014-08-13T12:51:08.370",41865,null,null,null,null,null,null,null,null,null,null,null,null,null,null,null,null,null,null,null,null,0,null,false]
[73,null,null,"2014-08-13T12:51:08.370",41865,null,null,null,null,null,null,null,null,null,null,null,null,null,null,null,null,null,null,null,null,0,null,false]
[74,null,null,"2014-08-13T12:51:08.370",41865,null,null,null,null,null,null,null,null,null,null,null,null,null,null,null,null,null,null,null,null,0,null,false]
[75,null,null,"2014-08-13T12:51:08.370",41865,null,null,null,null,null,null,null,null,null,null,null,null,null,null,null,null,null,null,null,null,0,null,false]
[76,null,null,"2014-08-13T12:51:08.370",41865,null,null,null,null,null,null,null,null,null,null,null,null,null,null,null,null,null,null,null,null,0,null,false]
[77,null,null,"2014-08-13T12:51:08.370",41865,null,null,null,null,null,null,null,null,null,null,null,null,null,null,null,null,null,null,null,null,0,null,false]
[78,null,null,"2014-08-13T12:51:08.370",41865,null,null,null,null,null,null,null,null,null,null,null,null,null,null,null,null,null,null,null,null,0,null,false]
[79,null,null,"2014-08-13T12:51:08.370",41865,null,null,null,null,null,null,null,null,null,null,null,null,null,null,null,null,null,null,null,null,0,null,false]
[80,null,null,"2014-08-13T12:51:08.370",41865,null,null,null,null,null,null,null,null,null,null,null,null,null,null,null,null,null,null,null,null,0,null,false]
[81,null,null,"2014-08-13T12:51:08.370",41865,null,null,null,null,null,null,null,null,null,null,null,null,null,null,null,null,null,null,null,null,0,null,false]
[82,null,null,"2014-08-13T12:51:08.370",41865,null,null,null,null,null,null,null,null,null,null,null,null,null,null,null,null,null,null,null,null,0,null,false]
[83,null,null,"2014-08-13T12:51:08.370",41865,null,null,null,null,null,null,null,null,null,null,null,null,null,null,null,null,null,null,null,null,0,null,false]
[84,null,null,"2014-08-13T12:51:08.370",41865,null,null,null,null,null,null,null,null,null,null,null,null,null,null,null,null,null,null,null,null,0,null,false]
[85,null,null,"2014-08-13T12:51:08.370",41865,null,null,null,null,null,null,null,null,null,null,null,null,null,null,null,null,null,null,null,null,0,null,false]
[86,null,null,"2014-08-13T12:51:08.370",41865,null,null,null,null,null,null,null,null,null,null,null,null,null,null,null,null,null,null,null,null,0,null,false]
[87,null,null,"2014-08-13T12:51:08.370",41865,null,null,null,null,null,null,null,null,null,null,null,null,null,null,null,null,null,null,null,null,0,null,false]
[88,null,null,"2014-08-13T12:51:08.370",41865,null,null,null,null,null,null,null,null,null,null,null,null,null,null,null,null,null,null,null,null,0,null,false]
[89,null,null,"2014-08-13T12:51:08.370",41865,null,null,null,null,null,null,null,null,null,null,null,null,null,null,null,null,null,null,null,null,0,null,false]
[90,null,null,"2014-08-13T12:51:08.370",41865,null,null,null,null,null,null,null,null,null,null,null,null,null,null,null,null,null,null,null,null,0,null,false]
[91,null,null,"2014-08-13T12:51:08.370",41865,null,null,null,null,null,null,null,null,null,null,null,null,null,null,null,null,null,null,null,null,0,null,false]
[92,null,null,"2014-08-13T12:51:08.370",41865,null,null,null,null,null,null,null,null,null,null,null,null,null,null,null,null,null,null,null,null,0,null,false]
[93,null,null,"2014-08-13T12:51:08.370",41865,null,null,null,null,null,null,null,null,null,null,null,null,null,null,null,null,null,null,null,null,0,null,false]
[94,null,null,"2014-08-13T12:51:08.370",41865,null,null,null,null,null,null,null,null,null,null,null,null,null,null,null,null,null,null,null,null,0,null,false]
[95,null,null,"2014-08-13T12:51:08.370",41865,null,null,null,null,null,null,null,null,null,null,null,null,null,null,null,null,null,null,null,null,0,null,false]
[96,null,null,"2014-08-13T12:51:08.370",41865,null,null,null,null,null,null,null,null,null,null,null,null,null,null,null,null,null,null,null,null,0,null,false]
[97,null,null,"2014-08-13T12:51:08.370",41865,null,null,null,null,null,null,null,null,null,null,null,null,null,null,null,null,null,null,null,null,0,null,false]
[98,null,null,"2014-08-13T12:51:08.370",41865,null,null,null,null,null,null,null,null,null,null,null,null,null,null,null,null,null,null,null,null,0,null,false]
[99,null,null,"2014-08-13T12:51:08.370",41865,null,null,null,null,null,null,null,null,null,null,null,null,null,null,null,null,null,null,null,null,0,null,false]
[100,null,null,"2014-08-13T12:51:08.370",41865,null,null,null,null,null,null,null,null,null,null,null,null,null,null,null,null,null,null,null,null,0,null,false]
[101,null,null,"2014-08-13T12:51:08.370",41865,null,null,null,null,null,null,null,null,null,null,null,null,null,null,null,null,null,null,null,null,0,null,false]
[102,null,null,"2014-08-13T12:51:08.370",41865,null,null,null,null,null,null,null,null,null,null,null,null,null,null,null,null,null,null,null,null,0,null,false]
[103,null,null,"2014-08-13T12:51:08.370",41865,null,null,null,null,null,null,null,null,null,null,null,null,null,null,null,null,null,null,null,null,0,null,false]
[104,null,null,"2014-08-13T12:51:08.370",41865,null,null,null,null,null,null,null,null,null,null,null,null,null,null,null,null,null,null,null,null,0,null,false]
[105,null,null,"2014-08-13T12:51:08.370",41865,null,null,null,null,null,null,null,null,null,null,null,null,null,null,null,null,null,null,null,null,0,null,false]
[106,null,null,"2014-08-13T12:51:08.370",41865,null,null,null,null,null,null,null,null,null,null,null,null,null,null,null,null,null,null,null,null,0,null,false]
[107,null,null,"2014-08-13T12:51:08.370",41865,null,null,null,null,null,null,null,null,null,null,null,null,null,null,null,null,null,null,null,null,0,null,false]
[108,null,null,"2014-08-13T12:51:08.370",41865,null,null,null,null,null,null,null,null,null,null,null,null,null,null,null,null,null,null,null,null,0,null,false]
[109,null,null,"2014-08-13T12:51:08.370",41865,null,null,null,null,null,null,null,null,null,null,null,null,null,null,null,null,null,null,null,null,0,null,false]
[110,null,null,"2014-08-13T12:51:08.370",41865,null,null,null,null,null,null,null,null,null,null,null,null,null,null,null,null,null,null,null,null,0,null,false]
[111,null,null,"2014-08-13T12:51:08.370",41865,null,null,null,null,null,null,null,null,null,null,null,null,null,null,null,null,null,null,null,null,0,null,false]
[112,null,null,"2014-08-13T12:51:08.370",41865,null,null,null,null,null,null,null,null,null,null,null,null,null,null,null,null,null,null,null,null,0,null,false]
[113,null,null,"2014-08-13T12:51:08.370",41865,null,null,null,null,null,null,null,null,null,null,null,null,null,null,null,null,null,null,null,null,0,null,false]
[114,null,null,"2014-08-13T12:51:08.370",41865,null,null,null,null,null,null,null,null,null,null,null,null,null,null,null,null,null,null,null,null,0,null,false]
[115,null,null,"2014-08-13T12:51:08.370",41865,null,null,null,null,null,null,null,null,null,null,null,null,null,null,null,null,null,null,null,null,0,null,false]
[116,null,null,"2014-08-13T12:51:08.370",41865,null,null,null,null,null,null,null,null,null,null,null,null,null,null,null,null,null,null,null,null,0,null,false]
[117,null,null,"2014-08-13T12:51:08.370",41865,null,null,null,null,null,null,null,null,null,null,null,null,null,null,null,null,null,null,null,null,0,null,false]
[118,null,null,"2014-08-13T12:51:08.370",41865,null,null,null,null,null,null,null,null,null,null,null,null,null,null,null,null,null,null,null,null,0,null,false]
[119,null,null,"2014-08-13T12:51:08.370",41865,null,null,null,null,null,null,null,null,null,null,null,null,null,null,null,null,null,null,null,null,0,null,false]
[120,null,null,"2014-08-13T12:51:08.370",41865,null,null,null,null,null,null,null,null,null,null,null,null,null,null,null,null,null,null,null,null,0,null,false]
[121,null,null,"2014-08-13T12:51:08.370",41865,null,null,null,null,null,null,null,null,null,null,null,null,null,null,null,null,null,null,null,null,0,null,false]
[122,null,null,"2014-08-13T12:51:08.370",41865,null,null,null,null,null,null,null,null,null,null,null,null,null,null,null,null,null,null,null,null,0,null,false]
[123,null,null,"2014-08-13T12:51:08.370",41865,null,null,null,null,null,null,null,null,null,null,null,null,null,null,null,null,null,null,null,null,0,null,false]
[124,null,null,"2014-08-13T12:51:08.370",41865,null,null,null,null,null,null,null,null,null,null,null,null,null,null,null,null,null,null,null,null,0,null,false]
[125,null,null,"2014-08-13T12:51:08.370",41865,null,null,null,null,null,null,null,null,null,null,null,null,null,null,null,null,null,null,null,null,0,null,false]
[126,null,null,"2014-08-13T12:51:08.370",41865,null,null,null,null,null,null,null,null,null,null,null,null,null,null,null,null,null,null,null,null,0,null,false]
[127,null,null,"2014-08-13T12:51:08.370",41865,null,null,null,null,null,null,null,null,null,null,null,null,null,null,null,null,null,null,null,null,0,null,false]
[128,null,null,"2014-08-13T12:51:08.370",41865,null,null,null,null,null,null,null,null,null,null,null,null,null,null,null,null,null,null,null,null,0,null,false]
[129,null,null,"2014-08-13T12:51:08.370",{"$f":"IF(C132>0,INT(C132-B132)+1,INT(D132-B132)+1)","v":41865},null,null,null,null,null,null,null,null,null,null,null,null,null,null,null,null,null,null,null,null,0,null,false]
[130,null,null,{"$f":"NOW()","v":"2014-08-13T12:51:08.370"},41865,null,null,null,null,null,null,null,null,null,null,null,null,null,null,null,null,null,null,null,null,0,null,false]
[131,null,null,"2014-08-13T12:51:08.370",41865,null,null,null,null,null,null,null,null,null,null,null,null,null,null,null,null,null,null,null,null,{"$f":"SUM(I134:Y134)","v":0},null,{"$f":"IF(AA134>0,Z134*(1-AA134))","v":false}]
[132,null,null,"2014-08-13T12:51:08.370",41865,null,null,null,null,null,null,null,null,null,null,null,null,null,null,null,null,null,null,null,null,0,null,false]
[133,null,null,"2014-08-13T12:51:08.370",41865,null,null,null,null,null,null,null,null,null,null,null,null,null,null,null,null,null,null,null,null,0,null,false]
[134,null,null,"2014-08-13T12:51:08.370",41865,null,null,null,null,null,null,null,null,null,null,null,null,null,null,null,null,null,null,null,null,0,null,false]
[135,null,null,"2014-08-13T12:51:08.370",41865,null,null,null,null,null,null,null,null,null,null,null,null,null,null,null,null,null,null,null,null,0,null,false]
[136,null,null,"2014-08-13T12:51:08.370",41865,null,null,null,null,null,null,null,null,null,null,null,null,null,null,null,null,null,null,null,null,0,null,false]
[137,null,null,"2014-08-13T12:51:08.370",41865,null,null,null,null,null,null,null,null,null,null,null,null,null,null,null,null,null,null,null,null,0,null,false]
[138,null,null,"2014-08-13T12:51:08.370",41865,null,null,null,null,null,null,null,null,null,null,null,null,null,null,null,null,null,null,null,null,0,null,false]
[139,null,null,"2014-08-13T12:51:08.370",41865,null,null,null,null,null,null,null,null,null,null,null,null,null,null,null,null,null,null,null,null,0,null,false]
[140,null,null,"2014-08-13T12:51:08.370",41865,null,null,null,null,null,null,null,null,null,null,null,null,null,null,null,null,null,null,null,null,0,null,false]
[141,null,null,"2014-08-13T12:51:08.370",41865,null,null,null,null,null,null,null,null,null,null,null,null,null,null,null,null,null,null,null,null,0,null,false]
[142,null,null,"2014-08-13T12:51:08.370",41865,null,null,null,null,null,null,null,null,null,null,null,null,null,null,null,null,null,null,null,null,0,null,false]
[143,null,null,"2014-08-13T12:51:08.370",41865,null,null,null,null,null,null,null,null,null,null,null,null,null,null,null,null,null,null,null,null,0,null,false]
[144,null,null,"2014-08-13T12:51:08.370",41865,null,null,null,null,null,null,null,null,null,null,null,null,null,null,null,null,null,null,null,null,0,null,false]
[145,null,null,"2014-08-13T12:51:08.370",41865,null,null,null,null,null,null,null,null,null,null,null,null,null,null,null,null,null,null,null,null,0,null,false]
[146,null,null,"2014-08-13T12:51:08.370",41865,null,null,null,null,null,null,null,null,null,null,null,null,null,null,null,null,null,null,null,null,0,null,false]
[147,null,null,"2014-08-13T12:51:08.370",41865,null,null,null,null,null,null,null,null,null,null,null,null,null,null,null,null,null,null,null,null,0,null,false]
[148,null,null,"2014-08-13T12:51:08.370",41865,null,null,null,null,null,null,null,null,null,null,null,null,null,null,null,null,null,null,null,null,0,null,false]
[149,null,null,"2014-08-13T12:51:08.370",41865,null,null,null,null,null,null,null,null,null,null,null,null,null,null,null,null,null,null,null,null,0,null,false]
[150,null,null,"2014-08-13T12:51:08.370",41865,null,null,null,null,null,null,null,null,null,null,null,null,null,null,null,null,null,null,null,null,0,null,false]
[151,null,null,"2014-08-13T12:51:08.370",41865,null,null,null,null,null,null,null,null,null,null,null,null,null,null,null,null,null,null,null,null,0,null,false]
[152,null,null,"2014-08-13T12:51:08.370",41865,null,null,null,null,null,null,null,null,null,null,null,null,null,null,null,null,null,null,null,null,0,null,false]
[153,null,null,"2014-08-13T12:51:08.370",41865,null,null,null,null,null,null,null,null,null,null,null,null,null,null,null,null,null,null,null,null,0,null,false]
[154,null,null,"2014-08-13T12:51:08.370",41865,null,null,null,null,null,null,null,null,null,null,null,null,null,null,null,null,null,null,null,null,0,null,false]
[155,null,null,"2014-08-13T12:51:08.370",41865,null,null,null,null,null,null,null,null,null,null,null,null,null,null,null,null,null,null,null,null,0,null,false]
[156,null,null,"2014-08-13T12:51:08.370",41865,null,null,null,null,null,null,null,null,null,null,null,null,null,null,null,null,null,null,null,null,0,null,false]
[157,null,null,"2014-08-13T12:51:08.370",41865,null,null,null,null,null,null,null,null,null,null,null,null,null,null,null,null,null,null,null,null,0,null,false]
[158,null,null,"2014-08-13T12:51:08.370",41865,null,null,null,null,null,null,null,null,null,null,null,null,null,null,null,null,null,null,null,null,0,null,false]
[159,null,null,"2014-08-13T12:51:08.370",41865,null,null,null,null,null,null,null,null,null,null,null,null,null,null,null,null,null,null,null,null,0,null,false]
[160,null,null,"2014-08-13T12:51:08.370",41865,null,null,null,null,null,null,null,null,null,null,null,null,null,null,null,null,null,null,null,null,0,null,false]
[161,null,null,"2014-08-13T12:51:08.370",41865,null,null,null,null,null,null,null,null,null,null,null,null,null,null,null,null,null,null,null,null,0,null,false]
[162,null,null,"2014-08-13T12:51:08.370",41865,null,null,null,null,null,null,null,null,null,null,null,null,null,null,null,null,null,null,null,null,0,null,false]
[163,null,null,"2014-08-13T12:51:08.370",41865,null,null,null,null,null,null,null,null,null,null,null,null,null,null,null,null,null,null,null,null,0,null,false]
[164,null,null,"2014-08-13T12:51:08.370",41865,null,null,null,null,null,null,null,null,null,null,null,null,null,null,null,null,null,null,null,null,0,null,false]
[165,null,null,"2014-08-13T12:51:08.370",41865,null,null,null,null,null,null,null,null,null,null,null,null,null,null,null,null,null,null,null,null,0,null,false]
[166,null,null,"2014-08-13T12:51:08.370",41865,null,null,null,null,null,null,null,null,null,null,null,null,null,null,null,null,null,null,null,null,0,null,false]
[167,null,null,"2014-08-13T12:51:08.370",41865,null,null,null,null,null,null,null,null,null,null,null,null,null,null,null,null,null,null,null,null,0,null,false]
[168,null,null,"2014-08-13T12:51:08.370",41865,null,null,null,null,null,null,null,null,null,null,null,null,null,null,null,null,null,null,null,null,0,null,false]
[169,null,null,"2014-08-13T12:51:08.370",41865,null,null,null,null,null,null,null,null,null,null,null,null,null,null,null,null,null,null,null,null,0,null,false]
[170,null,null,"2014-08-13T12:51:08.370",41865,null,null,null,null,null,null,null,null,null,null,null,null,null,null,null,null,null,null,null,null,0,null,false]
[171,null,null,"2014-08-13T12:51:08.370",41865,null,null,null,null,null,null,null,null,null,null,null,null,null,null,null,null,null,null,null,null,0,null,false]
[172,null,null,"2014-08-13T12:51:08.370",41865,null,null,null,null,null,null,null,null,null,null,null,null,null,null,null,null,null,null,null,null,0,null,false]
[173,null,null,"2014-08-13T12:51:08.370",41865,null,null,null,null,null,null,null,null,null,null,null,null,null,null,null,null,null,null,null,null,0,null,false]
[174,null,null,"2014-08-13T12:51:08.370",41865,null,null,null,null,null,null,null,null,null,null,null,null,null,null,null,null,null,null,null,null,0,null,false]
[175,null,null,"2014-08-13T12:51:08.370",41865,null,null,null,null,null,null,null,null,null,null,null,null,null,null,null,null,null,null,null,null,0,null,false]
[176,null,null,"2014-08-13T12:51:08.370",41865,null,null,null,null,null,null,null,null,null,null,null,null,null,null,null,null,null,null,null,null,0,null,false]
[177,null,null,"2014-08-13T12:51:08.370",41865,null,null,null,null,null,null,null,null,null,null,null,null,null,null,null,null,null,null,null,null,0,null,false]
[178,null,null,"2014-08-13T12:51:08.370",41865,null,null,null,null,null,null,null,null,null,null,null,null,null,null,null,null,null,null,null,null,0,null,false]
[179,null,null,"2014-08-13T12:51:08.370",41865,null,null,null,null,null,null,null,null,null,null,null,null,null,null,null,null,null,null,null,null,0,null,false]
[180,null,null,"2014-08-13T12:51:08.370",41865,null,null,null,null,null,null,null,null,null,null,null,null,null,null,null,null,null,null,null,null,0,null,false]
[181,null,null,"2014-08-13T12:51:08.370",41865,null,null,null,null,null,null,null,null,null,null,null,null,null,null,null,null,null,null,null,null,0,null,false]
[182,null,null,"2014-08-13T12:51:08.370",41865,null,null,null,null,null,null,null,null,null,null,null,null,null,null,null,null,null,null,null,null,0,null,false]
[183,null,null,"2014-08-13T12:51:08.370",41865,null,null,null,null,null,null,null,null,null,null,null,null,null,null,null,null,null,null,null,null,0,null,false]
[184,null,null,"2014-08-13T12:51:08.370",41865,null,null,null,null,null,null,null,null,null,null,null,null,null,null,null,null,null,null,null,null,0,null,false]
[185,null,null,"2014-08-13T12:51:08.370",41865,null,null,null,null,null,null,null,null,null,null,null,null,null,null,null,null,null,null,null,null,0,null,false]
[186,null,null,"2014-08-13T12:51:08.370",41865,null,null,null,null,null,null,null,null,null,null,null,null,null,null,null,null,null,null,null,null,0,null,false]
[187,null,null,"2014-08-13T12:51:08.370",41865,null,null,null,null,null,null,null,null,null,null,null,null,null,null,null,null,null,null,null,null,0,null,false]
[188,null,null,"2014-08-13T12:51:08.370",41865,null,null,null,null,null,null,null,null,null,null,null,null,null,null,null,null,null,null,null,null,0,null,false]
[189,null,null,"2014-08-13T12:51:08.370",41865,null,null,null,null,null,null,null,null,null,null,null,null,null,null,null,null,null,null,null,null,0,null,false]
[190,null,null,"2014-08-13T12:51:08.370",41865,null,null,null,null,null,null,null,null,null,null,null,null,null,null,null,null,null,null,null,null,0,null,false]
[191,null,null,"2014-08-13T12:51:08.370",41865,null,null,null,null,null,null,null,null,null,null,null,null,null,null,null,null,null,null,null,null,0,null,false]
[192,null,null,"2014-08-13T12:51:08.370",41865,null,null,null,null,null,null,null,null,null,null,null,null,null,null,null,null,null,null,null,null,0,null,false]
[193,null,null,"2014-08-13T12:51:08.370",{"$f":"IF(C196>0,INT(C196-B196)+1,INT(D196-B196)+1)","v":41865},null,null,null,null,null,null,null,null,null,null,null,null,null,null,null,null,null,null,null,null,0,null,false]
[194,null,null,{"$f":"NOW()","v":"2014-08-13T12:51:08.370"},41865,null,null,null,null,null,null,null,null,null,null,null,null,null,null,null,null,null,null,null,null,0,null,false]
[195,null,null,"2014-08-13T12:51:08.370",41865,null,null,null,null,null,null,null,null,null,null,null,null,null,null,null,null,null,null,null,null,{"$f":"SUM(I198:Y198)","v":0},null,{"$f":"IF(AA198>0,Z198*(1-AA198))","v":false}]
[196,null,null,"2014-08-13T12:51:08.370",41865,null,null,null,null,null,null,null,null,null,null,null,null,null,null,null,null,null,null,null,null,0,null,false]
[197,null,null,"2014-08-13T12:51:08.370",41865,null,null,null,null,null,null,null,null,null,null,null,null,null,null,null,null,null,null,null,null,0,null,false]
[198,null,null,"2014-08-13T12:51:08.370",41865,null,null,null,null,null,null,null,null,null,null,null,null,null,null,null,null,null,null,null,null,0,null,false]
[199,null,null,"2014-08-13T12:51:08.370",41865,null,null,null,null,null,null,null,null,null,null,null,null,null,null,null,null,null,null,null,null,0,null,false]
[200,null,null,"2014-08-13T12:51:08.370",41865,null,null,null,null,null,null,null,null,null,null,null,null,null,null,null,null,null,null,null,null,0,null,false]
[201,null,null,"2014-08-13T12:51:08.370",41865,null,null,null,null,null,null,null,null,null,null,null,null,null,null,null,null,null,null,null,null,0,null,false]
[202,null,null,"2014-08-13T12:51:08.370",41865,null,null,null,null,null,null,null,null,null,null,null,null,null,null,null,null,null,null,null,null,0,null,false]
[203,null,null,"2014-08-13T12:51:08.370",41865,null,null,null,null,null,null,null,null,null,null,null,null,null,null,null,null,null,null,null,null,0,null,false]
[204,null,null,"2014-08-13T12:51:08.370",41865,null,null,null,null,null,null,null,null,null,null,null,null,null,null,null,null,null,null,null,null,0,null,false]
[205,null,null,"2014-08-13T12:51:08.370",41865,null,null,null,null,null,null,null,null,null,null,null,null,null,null,null,null,null,null,null,null,0,null,false]
[206,null,null,"2014-08-13T12:51:08.370",41865,null,null,null,null,null,null,null,null,null,null,null,null,null,null,null,null,null,null,null,null,0,null,false]
[207,null,null,"2014-08-13T12:51:08.370",41865,null,null,null,null,null,null,null,null,null,null,null,null,null,null,null,null,null,null,null,null,0,null,false]
[208,null,null,"2014-08-13T12:51:08.370",41865,null,null,null,null,null,null,null,null,null,null,null,null,null,null,null,null,null,null,null,null,0,null,false]
[209,null,null,"2014-08-13T12:51:08.370",41865,null,null,null,null,null,null,null,null,null,null,null,null,null,null,null,null,null,null,null,null,0,null,false]
[210,null,null,"2014-08-13T12:51:08.370",41865,null,null,null,null,null,null,null,null,null,null,null,null,null,null,null,null,null,null,null,null,0,null,false]
[211,null,null,"2014-08-13T12:51:08.370",41865,null,null,null,null,null,null,null,null,null,null,null,null,null,null,null,null,null,null,null,null,0,null,false]
[212,null,null,"2014-08-13T12:51:08.370",41865,null,null,null,null,null,null,null,null,null,null,null,null,null,null,null,null,null,null,null,null,0,null,false]
[213,null,null,"2014-08-13T12:51:08.370",41865,null,null,null,null,null,null,null,null,null,null,null,null,null,null,null,null,null,null,null,null,0,null,false]
[214,null,null,"2014-08-13T12:51:08.370",41865,null,null,null,null,null,null,null,null,null,null,null,null,null,null,null,null,null,null,null,null,0,null,false]
[215,null,null,"2014-08-13T12:51:08.370",41865,null,null,null,null,null,null,null,null,null,null,null,null,null,null,null,null,null,null,null,null,0,null,false]
[216,null,null,"2014-08-13T12:51:08.370",41865,null,null,null,null,null,null,null,null,null,null,null,null,null,null,null,null,null,null,null,null,0,null,false]
[217,null,null,"2014-08-13T12:51:08.370",41865,null,null,null,null,null,null,null,null,null,null,null,null,null,null,null,null,null,null,null,null,0,null,false]
[218,null,null,"2014-08-13T12:51:08.370",41865,null,null,null,null,null,null,null,null,null,null,null,null,null,null,null,null,null,null,null,null,0,null,false]
[219,null,null,"2014-08-13T12:51:08.370",41865,null,null,null,null,null,null,null,null,null,null,null,null,null,null,null,null,null,null,null,null,0,null,false]
[220,null,null,"2014-08-13T12:51:08.370",41865,null,null,null,null,null,null,null,null,null,null,null,null,null,null,null,null,null,null,null,null,0,null,false]
[221,null,null,"2014-08-13T12:51:08.370",41865,null,null,null,null,null,null,null,null,null,null,null,null,null,null,null,null,null,null,null,null,0,null,false]
[222,null,null,"2014-08-13T12:51:08.370",41865,null,null,null,null,null,null,null,null,null,null,null,null,null,null,null,null,null,null,null,null,0,null,false]
[223,null,null,"2014-08-13T12:51:08.370",41865,null,null,null,null,null,null,null,null,null,null,null,null,null,null,null,null,null,null,null,null,0,null,false]
[224,null,null,"2014-08-13T12:51:08.370",41865,null,null,null,null,null,null,null,null,null,null,null,null,null,null,null,null,null,null,null,null,0,null,false]
[225,null,null,"2014-08-13T12:51:08.370",41865,null,null,null,null,null,null,null,null,null,null,null,null,null,null,null,null,null,null,null,null,0,null,false]
[226,null,null,"2014-08-13T12:51:08.370",41865,null,null,null,null,null,null,null,null,null,null,null,null,null,null,null,null,null,null,null,null,0,null,false]
[227,null,null,"2014-08-13T12:51:08.370",41865,null,null,null,null,null,null,null,null,null,null,null,null,null,null,null,null,null,null,null,null,0,null,false]
[228,null,null,"2014-08-13T12:51:08.370",41865,null,null,null,null,null,null,null,null,null,null,null,null,null,null,null,null,null,null,null,null,0,null,false]
[229,null,null,"2014-08-13T12:51:08.370",41865,null,null,null,null,null,null,null,null,null,null,null,null,null,null,null,null,null,null,null,null,0,null,false]
[230,null,null,"2014-08-13T12:51:08.370",41865,null,null,null,null,null,null,null,null,null,null,null,null,null,null,null,null,null,null,null,null,0,null,false]
[231,null,null,"2014-08-13T12:51:08.370",41865,null,null,null,null,null,null,null,null,null,null,null,null,null,null,null,null,null,null,null,null,0,null,false]
[232,null,null,"2014-08-13T12:51:08.370",41865,null,null,null,null,null,null,null,null,null,null,null,null,null,null,null,null,null,null,null,null,0,null,false]
[233,null,null,"2014-08-13T12:51:08.370",41865,null,null,null,null,null,null,null,null,null,null,null,null,null,null,null,null,null,null,null,null,0,null,false]
[234,null,null,"2014-08-13T12:51:08.370",41865,null,null,null,null,null,null,null,null,null,null,null,null,null,null,null,null,null,null,null,null,0,null,false]
[235,null,null,"2014-08-13T12:51:08.370",41865,null,null,null,null,null,null,null,null,null,null,null,null,null,null,null,null,null,null,null,null,0,null,false]
[236,null,null,"2014-08-13T12:51:08.370",41865,null,null,null,null,null,null,null,null,null,null,null,null,null,null,null,null,null,null,null,null,0,null,false]
[237,null,null,"2014-08-13T12:51:08.370",41865,null,null,null,null,null,null,null,null,null,null,null,null,null,null,null,null,null,null,null,null,0,null,false]
[238,null,null,"2014-08-13T12:51:08.370",41865,null,null,null,null,null,null,null,null,null,null,null,null,null,null,null,null,null,null,null,null,0,null,false]
[239,null,null,"2014-08-13T12:51:08.370",41865,null,null,null,null,null,null,null,null,null,null,null,null,null,null,null,null,null,null,null,null,0,null,false]
[240,null,null,"2014-08-13T12:51:08.370",41865,null,null,null,null,null,null,null,null,null,null,null,null,null,null,null,null,null,null,null,null,0,null,false]
[241,null,null,"2014-08-13T12:51:08.370",41865,null,null,null,null,null,null,null,null,null,null,null,null,null,null,null,null,null,null,null,null,0,null,false]
[242,null,null,"2014-08-13T12:51:08.370",41865,null,null,null,null,null,null,null,null,null,null,null,null,null,null,null,null,null,null,null,null,0,null,false]
[243,null,null,"2014-08-13T12:51:08.370",41865,null,null,null,null,null,null,null,null,null,null,null,null,null,null,null,null,null,null,null,null,0,null,false]
[244,null,null,"2014-08-13T12:51:08.370",41865,null,null,null,null,null,null,null,null,null,null,null,null,null,null,null,null,null,null,null,null,0,null,false]
[245,null,null,"2014-08-13T12:51:08.370",41865,null,null,null,null,null,null,null,null,null,null,null,null,null,null,null,null,null,null,null,null,0,null,false]
[246,null,null,"2014-08-13T12:51:08.370",41865,null,null,null,null,null,null,null,null,null,null,null,null,null,null,null,null,null,null,null,null,0,null,false]
[247,null,null,"2014-08-13T12:51:08.370",41865,null,null,null,null,null,null,null,null,null,null,null,null,null,null,null,null,null,null,null,null,0,null,false]
[248,null,null,"2014-08-13T12:51:08.370",41865,null,null,null,null,null,null,null,null,null,null,null,null,null,null,null,null,null,null,null,null,0,null,false]
[249,null,null,"2014-08-13T12:51:08.370",41865,null,null,null,null,null,null,null,null,null,null,null,null,null,null,null,null,null,null,null,null,0,null,false]
[250,null,null,"2014-08-13T12:51:08.370",41865,null,null,null,null,null,null,null,null,null,null,null,null,null,null,null,null,null,null,null,null,0,null,false]
[251,null,null,"2014-08-13T12:51:08.370",41865,null,null,null,null,null,null,null,null,null,null,null,null,null,null,null,null,null,null,null,null,0,null,false]
[252,null,null,"2014-08-13T12:51:08.370",41865,null,null,null,null,null,null,null,null,null,null,null,null,null,null,null,null,null,null,null,null,0,null,false]
[253,null,null,"2014-08-13T12:51:08.370",41865,null,null,null,null,null,null,null,null,null,null,null,null,null,null,null,null,null,null,null,null,0,null,false]
[254,null,null,"2014-08-13T12:51:08.370",41865,null,null,null,null,null,null,null,null,null,null,null,null,null,null,null,null,null,null,null,null,0,null,false]
[255,null,null,"2014-08-13T12:51:08.370",41865,null,null,null,null,null,null,null,null,null,null,null,null,null,null,null,null,null,null,null,null,0,null,false]
[256,null,null,"2014-08-13T12:51:08.370",41865,null,null,null,null,null,null,null,null,null,null,null,null,null,null,null,null,null,null,null,null,0,null,false]
[257,null,null,"2014-08-13T12:51:08.370",{"$f":"IF(C260>0,INT(C260-B260)+1,INT(D260-B260)+1)","v":41865},null,null,null,null,null,null,null,null,null,null,null,null,null,null,null,null,null,null,null,null,0,null,false]
[258,null,null,{"$f":"NOW()","v":"2014-08-13T12:51:08.370"},41865,null,null,null,null,null,null,null,null,null,null,null,null,null,null,null,null,null,null,null,null,0,null,false]
[259,null,null,"2014-08-13T12:51:08.370",41865,null,null,null,null,null,null,null,null,null,null,null,null,null,null,null,null,null,null,null,null,{"$f":"SUM(I262:Y262)","v":0},null,{"$f":"IF(AA262>0,Z262*(1-AA262))","v":false}]
[260,null,null,"2014-08-13T12:51:08.370",41865,null,null,null,null,null,null,null,null,null,null,null,null,null,null,null,null,null,null,null,null,0,null,false]
[261,null,null,"2014-08-13T12:51:08.370",41865,null,null,null,null,null,null,null,null,null,null,null,null,null,null,null,null,null,null,null,null,0,null,false]
[262,null,null,"2014-08-13T12:51:08.370",41865,null,null,null,null,null,null,null,null,null,null,null,null,null,null,null,null,null,null,null,null,0,null,false]
[263,null,null,"2014-08-13T12:51:08.370",41865,null,null,null,null,null,null,null,null,null,null,null,null,null,null,null,null,null,null,null,null,0,null,false]
[264,null,null,"2014-08-13T12:51:08.370",41865,null,null,null,null,null,null,null,null,null,null,null,null,null,null,null,null,null,null,null,null,0,null,false]
[265,null,null,"2014-08-13T12:51:08.370",41865,null,null,null,null,null,null,null,null,null,null,null,null,null,null,null,null,null,null,null,null,0,null,false]
[266,null,null,"2014-08-13T12:51:08.370",41865,null,null,null,null,null,null,null,null,null,null,null,null,null,null,null,null,null,null,null,null,0,null,false]
[267,null,null,"2014-08-13T12:51:08.370",41865,null,null,null,null,null,null,null,null,null,null,null,null,null,null,null,null,null,null,null,null,0,null,false]
[268,null,null,"2014-08-13T12:51:08.370",41865,null,null,null,null,null,null,null,null,null,null,null,null,null,null,null,null,null,null,null,null,0,null,false]
[269,null,null,"2014-08-13T12:51:08.370",41865,null,null,null,null,null,null,null,null,null,null,null,null,null,null,null,null,null,null,null,null,0,null,false]
[270,null,null,"2014-08-13T12:51:08.370",41865,null,null,null,null,null,null,null,null,null,null,null,null,null,null,null,null,null,null,null,null,0,null,false]
[271,null,null,"2014-08-13T12:51:08.370",41865,null,null,null,null,null,null,null,null,null,null,null,null,null,null,null,null,null,null,null,null,0,null,false]
[272,null,null,"2014-08-13T12:51:08.370",41865,null,null,null,null,null,null,null,null,null,null,null,null,null,null,null,null,null,null,null,null,0,null,false]
[273,null,null,"2014-08-13T12:51:08.370",41865,null,null,null,null,null,null,null,null,null,null,null,null,null,null,null,null,null,null,null,null,0,null,false]
[274,null,null,"2014-08-13T12:51:08.370",41865,null,null,null,null,null,null,null,null,null,null,null,null,null,null,null,null,null,null,null,null,0,null,false]
[275,null,null,"2014-08-13T12:51:08.370",41865,null,null,null,null,null,null,null,null,null,null,null,null,null,null,null,null,null,null,null,null,0,null,false]
[276,null,null,"2014-08-13T12:51:08.370",41865,null,null,null,null,null,null,null,null,null,null,null,null,null,null,null,null,null,null,null,null,0,null,false]
[277,null,null,"2014-08-13T12:51:08.370",41865,null,null,null,null,null,null,null,null,null,null,null,null,null,null,null,null,null,null,null,null,0,null,false]
[278,null,null,"2014-08-13T12:51:08.370",41865,null,null,null,null,null,null,null,null,null,null,null,null,null,null,null,null,null,null,null,null,0,null,false]
[279,null,null,"2014-08-13T12:51:08.370",41865,null,null,null,null,null,null,null,null,null,null,null,null,null,null,null,null,null,null,null,null,0,null,false]
[280,null,null,"2014-08-13T12:51:08.370",41865,null,null,null,null,null,null,null,null,null,null,null,null,null,null,null,null,null,null,null,null,0,null,false]
[281,null,null,"2014-08-13T12:51:08.370",41865,null,null,null,null,null,null,null,null,null,null,null,null,null,null,null,null,null,null,null,null,0,null,false]
[282,null,null,"2014-08-13T12:51:08.370",41865,null,null,null,null,null,null,null,null,null,null,null,null,null,null,null,null,null,null,null,null,0,null,false]
[283,null,null,"2014-08-13T12:51:08.370",41865,null,null,null,null,null,null,null,null,null,null,null,null,null,null,null,null,null,null,null,null,0,null,false]
[284,null,null,"2014-08-13T12:51:08.370",41865,null,null,null,null,null,null,null,null,null,null,null,null,null,null,null,null,null,null,null,null,0,null,false]
[285,null,null,"2014-08-13T12:51:08.370",41865,null,null,null,null,null,null,null,null,null,null,null,null,null,null,null,null,null,null,null,null,0,null,false]
[286,null,null,"2014-08-13T12:51:08.370",41865,null,null,null,null,null,null,null,null,null,null,null,null,null,null,null,null,null,null,null,null,0,null,false]
[287,null,null,"2014-08-13T12:51:08.370",41865,null,null,null,null,null,null,null,null,null,null,null,null,null,null,null,null,null,null,null,null,0,null,false]
[288,null,null,"2014-08-13T12:51:08.370",41865,null,null,null,null,null,null,null,null,null,null,null,null,null,null,null,null,null,null,null,null,0,null,false]
[289,null,null,"2014-08-13T12:51:08.370",41865,null,null,null,null,null,null,null,null,null,null,null,null,null,null,null,null,null,null,null,null,0,null,false]
[290,null,null,"2014-08-13T12:51:08.370",41865,null,null,null,null,null,null,null,null,null,null,null,null,null,null,null,null,null,null,null,null,0,null,false]
[291,null,null,"2014-08-13T12:51:08.370",41865,null,null,null,null,null,null,null,null,null,null,null,null,null,null,null,null,null,null,null,null,0,null,false]
[292,null,null,"2014-08-13T12:51:08.370",41865,null,null,null,null,null,null,null,null,null,null,null,null,null,null,null,null,null,null,null,null,0,null,false]
[293,null,null,"2014-08-13T12:51:08.370",41865,null,null,null,null,null,null,null,null,null,null,null,null,null,null,null,null,null,null,null,null,0,null,false]
[294,null,null,"2014-08-13T12:51:08.370",41865,null,null,null,null,null,null,null,null,null,null,null,null,null,null,null,null,null,null,null,null,0,null,false]
[295,null,null,"2014-08-13T12:51:08.370",41865,null,null,null,null,null,null,null,null,null,null,null,null,null,null,null,null,null,null,null,null,0,null,false]
[296,null,null,"2014-08-13T12:51:08.370",41865,null,null,null,null,null,null,null,null,null,null,null,null,null,null,null,null,null,null,null,null,0,null,false]
[297,null,null,"2014-08-13T12:51:08.370",41865,null,null,null,null,null,null,null,null,null,null,null,null,null,null,null,null,null,null,null,null,0,null,false]
[298,null,null,"2014-08-13T12:51:08.370",41865,null,null,null,null,null,null,null,null,null,null,null,null,null,null,null,null,null,null,null,null,0,null,false]
[299,null,null,"2014-08-13T12:51:08.370",41865,null,null,null,null,null,null,null,null,null,null,null,null,null,null,null,null,null,null,null,null,0,null,false]
[null,null,null,null,null,null,null,null,null,{"$f":"SUM(J4:J302)","v":0},{"$f":"SUM(K4:K302)","v":0},0,0,0,0,0,0,0,0,0,0,0,{"$f":"SUM(W4:W302)","v":0},{"$f":"SUM(X4:X302)","v":0},{"$f":"SUM(Y4:Y302)","v":0},0]